fUST/lending_fUST_20240225
["ID","MTS","AMOUNT","RATE_DAILY","PERIOD"]
[315089137,1708810244544,-500.79878127,0.00020115,2]
[315089140,1708810244558,-960.75,0.00020115,2]
[315089142,1708810244570,-612.29435103,0.00020115,2]
[315089144,1708810244582,-1434.42,0.00020115,2]
[315089147,1708810244598,-754.69,0.00020115,2]
[315089149,1708810244609,-500.0,0.00020115,2]
[315089151,1708810244619,-1343.12,0.00020115,2]
[315089153,1708810244631,-500.0,0.00020115,2]
[315089156,1708810244643,-188.19,0.00020116,2]
[315089158,1708810244656,-500.0,0.00020116,2]
[315089160,1708810244670,-177.18,0.00020116,2]
[315089163,1708810244683,-500.0,0.00020116,2]
[315089165,1708810244695,-500.0,0.00020116,2]
[315089168,1708810244707,-500.0,0.00020116,2]
[315089170,1708810244718,-500.0,0.00020116,2]
[315089172,1708810244728,-648.89,0.00020116,2]
[315089174,1708810244739,-500.0,0.00020116,2]
[315089176,1708810244752,-155.31,0.00020116,2]
[315089179,1708810244763,-500.0,0.00020116,2]
[315089181,1708810244775,-500.0,0.00020116,2]
[315089183,1708810244787,-500.0,0.00020116,2]
[315089185,1708810244799,-1247.66,0.00020116,2]
[315089188,1708810244810,-500.0,0.00020116,2]
[315089190,1708810244822,-500.0,0.00020116,2]
[315089192,1708810244834,-1143.36,0.00020116,2]
[315089194,1708810244844,-1404.07,0.00020116,2]
[315089196,1708810244854,-500.0,0.00020116,2]
[315089199,1708810244867,-500.0,0.00020116,2]
[315089201,1708810244879,-500.0,0.00020116,2]
[315089203,1708810244891,-500.0,0.00020116,2]
[315089206,1708810244904,-4699.89,0.00020116,2]
[315089208,1708810244915,-500.0,0.00020116,2]
[315089210,1708810244927,-2149.58,0.00020116,2]
[315089212,1708810244937,-500.0,0.00020116,2]
[315089215,1708810244949,-500.0,0.00020116,2]
[315089217,1708810244961,-500.0,0.00020117,2]
[315089219,1708810244973,-240.45,0.00020117,2]
[315089222,1708810244987,-500.0,0.00020117,2]
[315089224,1708810244998,-174.41,0.00020117,2]
[315089226,1708810245010,-500.0,0.00020117,2]
[315089229,1708810245023,-500.0,0.00020117,2]
[315089231,1708810245035,-500.0,0.00020117,2]
[315089233,1708810245045,-283.48,0.00020117,2]
[315089235,1708810245055,-410.69914595,0.00020269,2]
[315089237,1708810245065,-6930.85,0.00020387,2]
[315089239,1708810245076,-500.0,0.00020387,2]
[315089241,1708810245087,-500.0,0.00020388,2]
[315089244,1708810245100,-734.7,0.00020388,2]
[315089246,1708810245111,-699.55,0.00020388,2]
[315089248,1708810245122,-500.0,0.00020388,2]
[315089250,1708810245133,-500.0,0.00020388,2]
[315089253,1708810245145,-797.22,0.00020388,2]
[315089255,1708810245156,-5528.23,0.00020388,2]
[315089257,1708810245166,-500.0,0.00020388,2]
[315089259,1708810245176,-705.11,0.00020388,2]
[315089261,1708810245186,-734.53,0.00020388,2]
[315089263,1708810245201,-500.0,0.00020388,2]
[315089266,1708810245212,-500.0,0.00020388,2]
[315089268,1708810245223,-603.66,0.00020388,2]
[315089270,1708810245233,-3346.27,0.00020388,2]
[315089272,1708810245244,-527.93,0.00020388,2]
[315089274,1708810245254,-673.95,0.00020388,2]
[315089276,1708810245265,-5423.92,0.00020388,2]
[315089279,1708810245277,-1340.16,0.00020388,2]
[315089281,1708810245288,-500.0,0.00020389,2]
[315089283,1708810245299,-500.0,0.00020389,2]
[315089285,1708810245311,-500.0,0.00020389,2]
[315089287,1708810245321,-1156.55,0.00020389,2]
[315089289,1708810245332,-960.75,0.00020389,2]
[315089292,1708810245342,-1434.42,0.00020389,2]
[315089294,1708810245355,-754.69,0.00020389,2]
[315089296,1708810245365,-500.0,0.00020389,2]
[315089298,1708810245376,-1343.12,0.00020389,2]
[315089300,1708810245387,-500.0,0.0002039,2]
[315089302,1708810245399,-500.0,0.0002039,2]
[315089304,1708810245409,-500.0,0.0002039,2]
[315089307,1708810245422,-500.0,0.0002039,2]
[315089309,1708810245432,-648.89,0.0002039,2]
[315089311,1708810245443,-500.0,0.0002039,2]
[315089313,1708810245454,-500.0,0.0002039,2]
[315089315,1708810245467,-500.0,0.0002039,2]
[315089317,1708810245478,-500.0,0.0002039,2]
[315089320,1708810245488,-1247.66,0.0002039,2]
[315089322,1708810245500,-500.0,0.0002039,2]
[315089324,1708810245510,-1143.36,0.0002039,2]
[315089326,1708810245521,-1404.07,0.0002039,2]
[315089328,1708810245532,-500.0,0.0002039,2]
[315089331,1708810245542,-500.0,0.0002039,2]
[315089333,1708810245552,-500.0,0.0002039,2]
[315089335,1708810245563,-4699.89,0.0002039,2]
[315089337,1708810245573,-500.0,0.0002039,2]
[315089339,1708810245583,-2149.58,0.0002039,2]
[315089341,1708810245593,-500.0,0.0002039,2]
[315089343,1708810245605,-500.0,0.0002039,2]
[315089345,1708810245615,-500.0,0.0002039,2]
[315089348,1708810245626,-477.56579186,0.00020391,2]
[315089350,1708810245637,-571.14937648,0.00020391,2]
[315089352,1708810245647,-500.0,0.00020391,2]
[315089354,1708810245657,-500.0,0.00020391,2]
[315089356,1708810245669,-999.35260013,0.00020391,2]
[315089359,1708810245679,-500.0,0.00020391,2]
[315089361,1708810245690,-500.0,0.00020483,2]
[315089363,1708810245700,-500.0,0.00020483,2]
[315089365,1708810245710,-500.0,0.00020483,2]
[315089367,1708810245720,-500.0,0.00020483,2]
[315089369,1708810245731,-500.0,0.00020483,2]
[315089371,1708810245741,-166.666666,0.00020524,2]
[315089374,1708810245751,-65565.64944067,0.00020597,2]
[315089376,1708810245762,-500.0,0.000206,2]
[315089378,1708810245772,-500.0,0.000206,2]
[315089380,1708810245783,-497.28656827,0.000206,2]
[315089382,1708810245793,-171.571741,0.00020654,2]
[315089384,1708810245804,-166.497539,0.00020654,2]
[315089387,1708810245814,-173.037492,0.00020654,2]
[315089389,1708810245827,-164.070611,0.00020654,2]
[315089406,1708810245962,-171.571741,0.00020654,2]
[315089410,1708810245978,-156.301192,0.00020654,2]
[315089413,1708810245989,-6930.85,0.00020661,2]
[315089416,1708810245998,-500.0,0.00020661,2]
[315089419,1708810246007,-500.0,0.00020662,2]
[315089421,1708810246016,-734.7,0.00020662,2]
[315089423,1708810246025,-699.55,0.00020662,2]
[315089425,1708810246035,-500.0,0.00020662,2]
[315089427,1708810246044,-797.22,0.00020662,2]
[315089429,1708810246053,-5528.23,0.00020662,2]
[315089431,1708810246062,-557.64745766,0.00020662,2]
[315089433,1708810246071,-705.11,0.00020662,2]
[315089435,1708810246080,-734.53,0.00020662,2]
[315089437,1708810246090,-500.0,0.00020662,2]
[315089439,1708810246101,-500.0,0.00020662,2]
[315089441,1708810246109,-603.66,0.00020662,2]
[315089443,1708810246118,-3346.27,0.00020662,2]
[315089445,1708810246127,-527.93,0.00020662,2]
[315089447,1708810246135,-673.95,0.00020662,2]
[315089449,1708810246145,-5423.92,0.00020662,2]
[315089451,1708810246154,-1340.16,0.00020662,2]
[315089453,1708810246163,-500.0,0.00020663,2]
[315089455,1708810246172,-500.0,0.00020663,2]
[315089457,1708810246181,-1156.55,0.00020663,2]
[315089459,1708810246190,-960.75,0.00020663,2]
[315089461,1708810246203,-1434.42,0.00020663,2]
[315089463,1708810246213,-754.69,0.00020663,2]
[315089465,1708810246223,-500.0,0.00020663,2]
[315089467,1708810246232,-1343.12,0.00020663,2]
[315089469,1708810246242,-500.0,0.00020664,2]
[315089471,1708810246251,-500.0,0.00020664,2]
[315089473,1708810246260,-500.0,0.00020664,2]
[315089475,1708810246269,-648.89,0.00020664,2]
[315089477,1708810246280,-503.95786474,0.00020664,2]
[315089479,1708810246290,-500.0,0.00020664,2]
[315089481,1708810246299,-500.0,0.00020664,2]
[315089483,1708810246309,-500.0,0.00020664,2]
[315089485,1708810246318,-1247.66,0.00020664,2]
[315089487,1708810246327,-343.89292267,0.00020664,2]
[315089489,1708810246336,-1143.36,0.00020664,2]
[315089491,1708810246347,-1404.07,0.00020664,2]
[315089493,1708810246356,-500.0,0.00020664,2]
[315089495,1708810246366,-278.04,0.00020664,2]
[315089497,1708810246375,-4699.89,0.00020664,2]
[315089499,1708810246385,-500.0,0.00020664,2]
[315089501,1708810246394,-2149.58,0.00020664,2]
[315089503,1708810246403,-500.0,0.00020664,2]
[315089505,1708810246412,-500.0,0.00020664,2]
[315089508,1708810246428,-500.0,0.00020665,2]
[315089510,1708810246442,-410.69914595,0.0002067,2]
[315089513,1708810246453,-500.0,0.00020716,2]
[315089515,1708810246462,-500.0,0.00020716,2]
[315089517,1708810246472,-500.0,0.00020716,2]
[315089519,1708810246481,-500.0,0.00020723,2]
[315089521,1708810246491,-50000.0,0.00020739,2]
[315089523,1708810246501,-500.0,0.00020777,2]
[315089525,1708810246511,-500.0,0.00020777,2]
[315089527,1708810246523,-500.0,0.00020777,2]
[315089529,1708810246533,-210.65235539,0.00020777,2]
[315089531,1708810246542,-500.0,0.00020777,2]
[315089533,1708810246552,-500.0,0.00020777,2]
[315089536,1708810246562,-500.0,0.00020777,2]
[315089538,1708810246572,-424.48498047,0.00020777,2]
[315089540,1708810246581,-170.69216293,0.00020777,2]
[315089541,1708810246591,-500.0,0.00020777,2]
[315089544,1708810246601,-500.0,0.00020777,2]
[315089545,1708810246611,-500.0,0.00020777,2]
[315089548,1708810246621,-500.0,0.00020777,2]
[315089550,1708810246630,-500.0,0.00020777,2]
[315089552,1708810246641,-500.0,0.00020777,2]
[315089554,1708810246650,-500.0,0.00020777,2]
[315089556,1708810246662,-500.0,0.00020777,2]
[315089558,1708810246671,-166.97743424,0.00020777,2]
[315089560,1708810246681,-500.0,0.00020777,2]
[315089562,1708810246691,-335.52889667,0.00020777,2]
[315089564,1708810246701,-500.0,0.00020777,2]
[315089566,1708810246711,-500.0,0.00020777,2]
[315089568,1708810246720,-500.0,0.00020777,2]
[315089570,1708810246730,-500.0,0.00020777,2]
[315089572,1708810246739,-500.0,0.00020777,2]
[315089574,1708810246749,-500.0,0.00020777,2]
[315089576,1708810246759,-500.0,0.00020777,2]
[315089578,1708810246769,-500.0,0.00020777,2]
[315089580,1708810246779,-500.0,0.00020777,2]
[315089582,1708810246789,-80253.95765095,0.00020778,2]
[315089584,1708810246798,-500.0,0.00020833,2]
[315089586,1708810246808,-50000.0,0.0002088,2]
[315089588,1708810246818,-6930.85,0.00020935,2]
[315089590,1708810246827,-500.0,0.00020935,2]
[315089592,1708810246837,-500.0,0.00020936,2]
[315089595,1708810246848,-734.7,0.00020936,2]
[315089597,1708810246858,-699.55,0.00020936,2]
[315089599,1708810246867,-214.29920829,0.00020936,2]
[315089601,1708810246877,-500.0,0.00020936,2]
[315089603,1708810246888,-797.22,0.00020936,2]
[315089605,1708810246897,-5528.23,0.00020936,2]
[315089607,1708810246906,-705.11,0.00020936,2]
[315089609,1708810246916,-734.53,0.00020936,2]
[315089611,1708810246925,-500.0,0.00020936,2]
[315089613,1708810246934,-500.0,0.00020936,2]
[315089615,1708810246943,-603.66,0.00020936,2]
[315089617,1708810246952,-3346.27,0.00020936,2]
[315089619,1708810246961,-527.93,0.00020936,2]
[315089621,1708810246971,-673.95,0.00020936,2]
[315089623,1708810246980,-5423.92,0.00020936,2]
[315089625,1708810246990,-500.0,0.00020936,2]
[315089627,1708810246999,-1340.16,0.00020936,2]
[315089629,1708810247008,-500.0,0.00020937,2]
[315089631,1708810247018,-1156.55,0.00020937,2]
[315089633,1708810247028,-960.75,0.00020937,2]
[315089635,1708810247038,-1434.42,0.00020937,2]
[315089637,1708810247047,-754.69,0.00020937,2]
[315089639,1708810247058,-488.36,0.00020937,2]
[315089641,1708810247067,-1343.12,0.00020937,2]
[315089643,1708810247077,-500.0,0.00020938,2]
[315089645,1708810247087,-500.0,0.00020938,2]
[315089647,1708810247098,-500.0,0.00020938,2]
[315089649,1708810247107,-648.89,0.00020938,2]
[315089651,1708810247116,-500.0,0.00020938,2]
[315089653,1708810247125,-502.61615205,0.00020938,2]
[315089655,1708810247135,-1247.66,0.00020938,2]
[315089657,1708810247144,-1143.36,0.00020938,2]
[315089659,1708810247154,-1404.07,0.00020938,2]
[315089661,1708810247163,-500.0,0.00020938,2]
[315089663,1708810247173,-4699.89,0.00020938,2]
[315089665,1708810247182,-500.0,0.00020938,2]
[315089667,1708810247191,-2149.58,0.00020938,2]
[315089669,1708810247205,-500.0,0.00020938,2]
[315089671,1708810247214,-500.0,0.00020939,2]
[315089673,1708810247224,-166.666666,0.00020973,2]
[315089675,1708810247233,-49899.73722612,0.00020985,2]
[315089677,1708810247243,-156.301192,0.00020998,2]
[315089679,1708810247252,-10523.65144563,0.00020999,2]
[315089681,1708810247263,-50000.0,0.0002101,2]
[315089683,1708810247273,-50000.0,0.00021022,2]
[315089685,1708810247284,-410.69914595,0.0002107,2]
[315089687,1708810247294,-171.571741,0.00021171,2]
[315089689,1708810247303,-171.571741,0.00021171,2]
[315089691,1708810247313,-6930.85,0.00021209,2]
[315089693,1708810247322,-500.0,0.00021209,2]
[315089695,1708810247331,-500.0,0.0002121,2]
[315089697,1708810247341,-734.7,0.0002121,2]
[315089699,1708810247352,-699.55,0.0002121,2]
[315089701,1708810247361,-500.0,0.0002121,2]
[315089703,1708810247370,-797.22,0.0002121,2]
[315089705,1708810247380,-5528.23,0.0002121,2]
[315089707,1708810247390,-705.11,0.0002121,2]
[315089709,1708810247399,-734.53,0.0002121,2]
[315089711,1708810247408,-500.0,0.0002121,2]
[315089713,1708810247417,-500.0,0.0002121,2]
[315089715,1708810247427,-603.66,0.0002121,2]
[315089717,1708810247436,-3346.27,0.0002121,2]
[315089719,1708810247445,-527.93,0.0002121,2]
[315089721,1708810247455,-673.95,0.0002121,2]
[315089723,1708810247464,-5423.92,0.0002121,2]
[315089725,1708810247474,-1340.16,0.0002121,2]
[315089727,1708810247484,-500.0,0.00021211,2]
[315089729,1708810247493,-1156.55,0.00021211,2]
[315089731,1708810247503,-960.75,0.00021211,2]
[315089733,1708810247512,-1434.42,0.00021211,2]
[315089735,1708810247521,-754.69,0.00021211,2]
[315089737,1708810247531,-1343.12,0.00021211,2]
[315089739,1708810247540,-500.0,0.00021212,2]
[315089741,1708810247550,-162.41708873,0.00021212,2]
[315089743,1708810247559,-500.0,0.00021212,2]
[315089745,1708810247568,-648.89,0.00021212,2]
[315089747,1708810247578,-500.0,0.00021212,2]
[315089749,1708810247587,-1247.66,0.00021212,2]
[315089751,1708810247598,-1143.36,0.00021212,2]
[315089753,1708810247608,-1404.07,0.00021212,2]
[315089755,1708810247617,-280.56269431,0.00021212,2]
[315089757,1708810247627,-4699.89,0.00021212,2]
[315089759,1708810247636,-500.0,0.00021212,2]
[315089761,1708810247645,-2149.58,0.00021212,2]
[315089763,1708810247654,-636.16717505,0.00021212,2]
[315089765,1708810247664,-500.0,0.00021212,2]
[315089767,1708810247674,-500.0,0.00021213,2]
[315089769,1708810247682,-866.81110772,0.00021305,2]
[315089771,1708810247692,-156.301192,0.00021343,2]
[315089773,1708810247701,-153.0,0.00021391,2]
[315089775,1708810247711,-153.0,0.00021391,2]
[315089777,1708810247720,-166.666666,0.00021422,2]
[315089779,1708810247729,-6930.85,0.00021483,2]
[315089781,1708810247738,-500.0,0.00021483,2]
[315089783,1708810247748,-500.0,0.00021484,2]
[315089785,1708810247757,-734.7,0.00021484,2]
[315089787,1708810247767,-699.55,0.00021484,2]
[315089789,1708810247776,-500.0,0.00021484,2]
[315089791,1708810247785,-797.22,0.00021484,2]
[315089793,1708810247794,-5528.23,0.00021484,2]
[315089795,1708810247804,-705.11,0.00021484,2]
[315089797,1708810247813,-734.53,0.00021484,2]
[315089799,1708810247822,-500.0,0.00021484,2]
[315089801,1708810247831,-500.0,0.00021484,2]
[315089803,1708810247841,-603.66,0.00021484,2]
[315089805,1708810247852,-3346.27,0.00021484,2]
[315089807,1708810247861,-527.93,0.00021484,2]
[315089808,1708810247871,-673.95,0.00021484,2]
[315089810,1708810247880,-5423.92,0.00021484,2]
[315089813,1708810247890,-1340.16,0.00021484,2]
[315089815,1708810247899,-225.87296123,0.00021485,2]
[315089816,1708810247908,-1156.55,0.00021485,2]
[315089818,1708810247917,-960.75,0.00021485,2]
[315089820,1708810247926,-1434.42,0.00021485,2]
[315089822,1708810247935,-754.69,0.00021485,2]
[315089824,1708810247944,-1343.12,0.00021485,2]
[315089826,1708810247953,-500.0,0.00021486,2]
[315089828,1708810247962,-500.0,0.00021486,2]
[315089830,1708810247972,-648.89,0.00021486,2]
[315089832,1708810247981,-500.0,0.00021486,2]
[315089834,1708810247990,-1247.66,0.00021486,2]
[315089836,1708810247999,-1143.36,0.00021486,2]
[315089838,1708810248008,-1404.07,0.00021486,2]
[315089840,1708810248018,-4699.89,0.00021486,2]
[315089842,1708810248027,-500.0,0.00021486,2]
[315089844,1708810248036,-2149.58,0.00021486,2]
[315089846,1708810248046,-500.0,0.00021487,2]
[315089848,1708810248055,-153.0,0.00021507,2]
[315089850,1708810248065,-153.0,0.00021507,2]
[315089852,1708810248075,-153.0,0.00021507,2]
[315089854,1708810248083,-153.0,0.00021507,2]
[315089856,1708810248093,-500.0,0.00021595,2]
[315089858,1708810248104,-500.0,0.00021595,2]
[315089860,1708810248113,-500.0,0.00021596,2]
[315089862,1708810248123,-50000.0,0.00021597,2]
[315089864,1708810248132,-200.0,0.000216,2]
[315089866,1708810248142,-200.5294442,0.00021617,2]
[315089868,1708810248151,-200.5294442,0.00021617,2]
[315089870,1708810248159,-200.5294442,0.00021617,2]
[315089872,1708810248169,-50000.0,0.0002164,2]
[315089873,1708810248178,-50000.0,0.0002164,2]
[315089875,1708810248188,-171.571741,0.00021687,2]
[315089877,1708810248198,-171.571741,0.00021687,2]
[315089879,1708810248212,-164.070611,0.00021687,2]
[315089882,1708810248222,-156.301192,0.00021687,2]
[315089883,1708810248233,-50000.0,0.00021719,2]
[315089885,1708810248243,-2600.85286,0.00021719,2]
[315089887,1708810248252,-2600.85286,0.00021719,2]
[315089889,1708810248262,-151.0,0.00021719,2]
[315089891,1708810248271,-6930.85,0.00021757,2]
[315089893,1708810248281,-500.0,0.00021757,2]
[315089895,1708810248290,-500.0,0.00021758,2]
[315089897,1708810248300,-734.7,0.00021758,2]
[315089899,1708810248309,-699.55,0.00021758,2]
[315089901,1708810248319,-500.0,0.00021758,2]
[315089903,1708810248329,-797.22,0.00021758,2]
[315089905,1708810248338,-5528.23,0.00021758,2]
[315089907,1708810248348,-705.11,0.00021758,2]
[315089909,1708810248359,-734.53,0.00021758,2]
[315089911,1708810248368,-500.0,0.00021758,2]
[315089913,1708810248377,-603.66,0.00021758,2]
[315089915,1708810248387,-3346.27,0.00021758,2]
[315089917,1708810248396,-527.93,0.00021758,2]
[315089919,1708810248405,-673.95,0.00021758,2]
[315089921,1708810248414,-5423.92,0.00021758,2]
[315089923,1708810248423,-1340.16,0.00021758,2]
[315089924,1708810248435,-1156.55,0.00021759,2]
[315089925,1708810248443,-196.03292677,0.00021759,2]
[315089948,1708810248818,-2575.83,0.00019559,3]
[315089950,1708810248827,-764.71707323,0.00021759,2]
[315089951,1708810248837,-1434.42,0.00021759,2]
[315089953,1708810248847,-754.69,0.00021759,2]
[315089955,1708810248856,-1343.12,0.00021759,2]
[315089957,1708810248865,-500.0,0.0002176,2]
[315089959,1708810248874,-500.0,0.0002176,2]
[315089961,1708810248883,-648.89,0.0002176,2]
[315089963,1708810248892,-624.00404538,0.0002176,2]
[315089965,1708810248901,-1247.66,0.0002176,2]
[315089967,1708810248910,-1143.36,0.0002176,2]
[315089969,1708810248919,-1404.07,0.0002176,2]
[315089970,1708810248928,-3377.24653852,0.0002176,2]
[315089973,1708810248940,-1322.64346148,0.0002176,2]
[315089974,1708810248950,-500.0,0.0002176,2]
[315089976,1708810248959,-2149.58,0.0002176,2]
[315089978,1708810248968,-500.0,0.0002176,2]
[315089980,1708810248977,-500.0,0.00021761,2]
[315089982,1708810248986,-96965.11513336,0.00021841,2]
[315089989,1708810249043,-280.4,0.00019565,2]
[315090014,1708810249292,-219.6,0.00019565,2]
[315090016,1708810249301,-3475.61510409,0.00021841,2]
[315090018,1708810249314,-32838.7353712,0.00021841,2]
[315090020,1708810249323,-220.596274,0.00021841,2]
[315090022,1708810249332,-319.563768,0.00021841,2]
[315090024,1708810249341,-319.563768,0.00021841,2]
[315090026,1708810249350,-151.0,0.00021841,2]
[315090028,1708810249360,-151.0,0.00021841,2]
[315090030,1708810249369,-234.21438401,0.00021917,2]
[315090031,1708810249379,-176.6179955,0.00021918,2]
[315090033,1708810249390,-200.5294442,0.00021946,2]
[315090035,1708810249399,-200.5294442,0.00021946,2]
[315090037,1708810249408,-200.5294442,0.00021946,2]
[315090039,1708810249417,-200.5294442,0.00021946,2]
[315090041,1708810249426,-200.5294442,0.00021946,2]
[315090043,1708810249436,-200.5294442,0.00021946,2]
[315090045,1708810249446,-200.5294442,0.00021946,2]
[315090047,1708810249455,-200.5294442,0.00021946,2]
[315090049,1708810249464,-208.9539325,0.00021946,2]
[315090051,1708810249474,-200.5294442,0.00021946,2]
[315090053,1708810249484,-200.5294442,0.00021946,2]
[315090055,1708810249493,-200.5294442,0.00021946,2]
[315090057,1708810249502,-200.5294442,0.00021946,2]
[315090059,1708810249511,-200.5294442,0.00021946,2]
[315090061,1708810249520,-400.1811463,0.00021946,2]
[315090063,1708810249530,-1000.0,0.00021958,2]
[315090065,1708810249538,-1000.0,0.00021964,2]
[315090067,1708810249547,-1000.0,0.00021967,2]
[315090069,1708810249557,-1000.0,0.00021969,2]
[315090071,1708810249566,-327.18502808,0.00022,2]
[315090072,1708810249575,-3214.44555769,0.00022,4]
[315090074,1708810249588,-6930.85,0.00022031,2]
[315090076,1708810249597,-500.0,0.00022031,2]
[315090078,1708810249608,-500.0,0.00022032,2]
[315090080,1708810249617,-734.7,0.00022032,2]
[315090082,1708810249626,-699.55,0.00022032,2]
[315090084,1708810249635,-500.0,0.00022032,2]
[315090086,1708810249644,-797.22,0.00022032,2]
[315090088,1708810249653,-5528.23,0.00022032,2]
[315090090,1708810249663,-705.11,0.00022032,2]
[315090092,1708810249672,-734.53,0.00022032,2]
[315090094,1708810249682,-500.0,0.00022032,2]
[315090096,1708810249691,-603.66,0.00022032,2]
[315090098,1708810249701,-3346.27,0.00022032,2]
[315090100,1708810249710,-527.93,0.00022032,2]
[315090102,1708810249719,-673.95,0.00022032,2]
[315090104,1708810249728,-5423.92,0.00022032,2]
[315090106,1708810249736,-1340.16,0.00022032,2]
[315090108,1708810249745,-1156.55,0.00022033,2]
[315090110,1708810249754,-291.273151,0.00022033,2]
[315090112,1708810249763,-291.273151,0.00022033,2]
[315090114,1708810249773,-151.0,0.00022033,2]
[315090116,1708810249782,-960.75,0.00022033,2]
[315090118,1708810249791,-1434.42,0.00022033,2]
[315090120,1708810249800,-754.69,0.00022033,2]
[315090122,1708810249809,-1343.12,0.00022033,2]
[315090123,1708810249818,-500.0,0.00022034,2]
[315090125,1708810249828,-530.19,0.00022034,2]
[315090127,1708810249837,-648.89,0.00022034,2]
[315090129,1708810249846,-1247.66,0.00022034,2]
[315090131,1708810249855,-1143.36,0.00022034,2]
[315090133,1708810249864,-1404.07,0.00022034,2]
[315090135,1708810249873,-2600.85286,0.00022034,2]
[315090137,1708810249883,-2600.85286,0.00022034,2]
[315090139,1708810249892,-4699.89,0.00022034,2]
[315090141,1708810249902,-500.0,0.00022034,2]
[315090143,1708810249911,-2149.58,0.00022034,2]
[315090145,1708810249920,-151.0,0.00022034,2]
[315090147,1708810249929,-500.0,0.00022035,2]
[315090149,1708810249938,-300.0,0.00022039,2]
[315090151,1708810249947,-153.0,0.00022055,2]
[315090153,1708810249956,-153.0,0.00022055,2]
[315090155,1708810249965,-153.0,0.00022055,2]
[315090157,1708810249973,-1000.0,0.00022065,2]
[315090159,1708810249982,-153.0,0.00022082,2]
[315090161,1708810249991,-260.6364286,0.00022082,2]
[315090163,1708810250000,-153.0,0.00022082,2]
[315090165,1708810250009,-153.0,0.00022082,2]
[315090167,1708810250019,-153.0,0.00022082,2]
[315090169,1708810250028,-306.4163504,0.00022137,2]
[315090171,1708810250038,-1000.0,0.00022163,2]
[315090173,1708810250047,-150.0,0.000222,30]
[315090175,1708810250056,-154.9866991,0.00022212,2]
[315090177,1708810250065,-415.1072548,0.00022212,2]
[315090179,1708810250074,-300.0,0.00022239,2]
[315090181,1708810250083,-982.83896588,0.0002226,3]
[315090182,1708810250091,-3564.26694472,0.0002226,2]
[315090184,1708810250100,-1073.84198425,0.0002226,2]
[315090186,1708810250111,-416.17280043,0.0002226,3]
[315090188,1708810250120,-9303.85411793,0.0002226,2]
[315090190,1708810250129,-4619.26391659,0.0002226,2]
[315090192,1708810250138,-500.0,0.00022272,2]
[315090194,1708810250148,-1131.75598969,0.00022275,2]
[315090196,1708810250157,-500.0,0.00022302,2]
[315090198,1708810250167,-500.0,0.00022302,2]
[315090200,1708810250176,-6930.85,0.00022305,2]
[315090202,1708810250186,-580.73195067,0.00022305,2]
[315090204,1708810250197,-500.0,0.00022306,2]
[315090206,1708810250209,-734.7,0.00022306,2]
[315090208,1708810250218,-699.55,0.00022306,2]
[315090210,1708810250227,-500.0,0.00022306,2]
[315090212,1708810250237,-797.22,0.00022306,2]
[315090214,1708810250248,-5528.23,0.00022306,2]
[315090216,1708810250257,-705.11,0.00022306,2]
[315090218,1708810250266,-734.53,0.00022306,2]
[315090220,1708810250275,-373.58487852,0.00022306,2]
[315090222,1708810250286,-603.66,0.00022306,2]